bitfinex-derivatives/quotes_SOLF0:USTF0_20250624
["timestamp","ask_amount","ask_price","bid_price","bid_amount"]
[1750735250368,36.7,143.42,143.37,6.9702]
[1750735250962,6.9686,143.41,143.37,6.9702]
[1750735251164,6.9686,143.41,143.38,6.9699]
[1750735252363,6.9686,143.41,143.37,6.9702]
[1750735253468,6.9692,143.4,143.37,6.9702]
[1750735254766,6.9686,143.41,143.37,6.9702]
[1750735254962,6.9686,143.41,143.38,6.9699]
[1750735255965,36.7,143.42,143.38,6.9699]
[1750735256164,36.7,143.42,143.38,3.49894905]
[1750735256370,36.7,143.42,143.38,3.49728188]
[1750735257667,6.48311191,143.47,143.4,3.49728188]
[1750735257863,31.0,143.59,143.4,3.49728188]
[1750735257864,15.12577072,143.49,143.45,3.49728188]
[1750735258063,5.5808946,143.48,143.45,3.49728188]
[1750735258268,36.7,143.5,143.41,2.2678]
[1750735258570,5.58063755,143.49,143.41,2.2678]
[1750735258771,5.57663014,143.48,143.4,36.7]
[1750735258970,5.57663014,143.47,143.43,6.9671]
[1750735259160,36.7,143.46,143.4,36.7]
[1750735259365,36.7,143.46,143.42,3.49728188]
[1750735259668,36.7,143.49,143.44,3.49728188]
[1750735259859,36.7,143.49,143.45,6.9661]
[1750735260865,43.665,143.49,143.44,6.9669]
[1750735261066,36.7,143.49,143.44,6.9669]
[1750735261267,5.57357393,143.48,143.42,3.49510007]
[1750735261469,6.9654,143.48,143.44,6.9668]
[1750735261770,36.7,143.49,143.44,6.9668]
[1750735262075,12.53646072,143.48,143.43,6.9674]
[1750735262274,6.9651,143.48,143.43,6.9674]
[1750735262573,6.9651,143.48,143.42,3.49510007]
[1750735262964,6.9651,143.48,143.43,6.9674]
[1750735263172,6.9651,143.48,143.41,5.76290007]
[1750735263566,6.9651,143.48,143.43,6.9674]
[1750735263877,36.7,143.49,143.43,6.9674]
[1750735264567,6.9654,143.48,143.43,6.9674]
[1750735264973,6.9654,143.48,143.44,6.9669]
[1750735268378,43.6647,143.49,143.45,6.9664]
[1750735268979,43.6647,143.49,143.42,3.49510007]
[1750735268980,36.7,143.49,143.46,6.9659]
[1750735269489,36.7,143.49,143.47,6.9652]
[1750735269673,36.7,143.49,143.44,3.49510007]
[1750735270677,36.7,143.49,143.48,6.9651]
[1750735280589,36.7,143.49,143.47,6.9653]
[1750735280894,36.7,143.49,143.44,3.49510007]
[1750735281994,36.7,143.49,143.46,6.9656]
[1750735282792,43.6647,143.49,143.46,6.9656]
[1750735283493,3.49510007,143.48,143.44,6.967]
[1750735283685,5.69570007,143.48,143.41,2.2678]
[1750735283880,5.69570007,143.48,143.4,209.38238363]
[1750735284087,6.9659,143.47,143.43,6.9671]
[1750735284390,2.2006,143.48,143.4,209.38238363]
[1750735284592,6.9657,143.47,143.4,209.38238363]
[1750735284894,5.69570007,143.48,143.4,209.38238363]
[1750735285095,6.9664,143.46,143.42,6.9676]
[1750735285391,6.9664,143.46,143.4,205.88728356]
[1750735285392,37.18,143.45,143.4,209.38238363]
[1750735285795,37.18,143.45,143.42,6.9679]
[1750735287181,37.18,143.45,143.43,6.9672]
[1750735290293,37.18,143.45,143.44,6.967]
[1750735295103,39.4006,143.48,143.47,6.9655]
[1750735298796,46.3657,143.48,143.41,3.49510007]
[1750735300606,46.3657,143.48,143.44,6.9666]
[1750735302206,6.9656,143.47,143.44,6.9666]
[1750735303805,6.9656,143.47,143.43,6.9673]
[1750735305008,141.31510007,143.47,143.41,6.9683]
[1750735305212,3.49510007,143.45,143.37,2.2825]
[1750735305404,36.7,143.44,143.37,3.49510007]
[1750735305608,36.7,143.44,143.4,6.9689]
[1750735306014,3.49510007,143.43,143.38,6.9696]
[1750735306417,5.87200007,143.43,143.38,6.9696]
[1750735306718,3.49510007,143.41,143.34,3.49510007]
[1750735306922,36.7,143.4,143.32,3.49510007]
[1750735307122,6.9702,143.38,143.34,6.9715]
[1750735308716,37.9696,143.39,143.32,3.49510007]
[1750735309327,37.9696,143.39,143.35,6.971]
[1750735311432,36.72,143.38,143.35,6.971]
[1750735311627,6.977,143.48,143.36,6.9708]
[1750735311825,43.20311191,143.48,143.4,3.49510007]
[1750735312020,43.20311191,143.48,143.36,3.49510007]
[1750735312021,2.2635,143.46,143.36,4.5958]
[1750735312325,6.967,143.44,143.4,6.9687]
[1750735312531,36.72,143.43,143.37,3.49510007]
[1750735312924,40.21510007,143.43,143.39,6.9691]
[1750735313821,6.9681,143.42,143.39,6.9691]
[1750735314033,36.72,143.43,143.39,6.9691]
[1750735314223,40.21510007,143.43,143.39,6.9691]
[1750735314420,40.21510007,143.43,143.36,2.3147]
[1750735315328,6.9688,143.41,143.34,3.49510007]
[1750735316029,3.49510007,143.41,143.32,8.10850007]
[1750735316324,3.49510007,143.41,143.28,17.44380007]
[1750735316325,3.49510007,143.37,143.3,42.57790007]
[1750735316530,36.72,143.36,143.3,3.49510007]
[1750735316731,36.72,143.36,143.33,6.9722]
[1750735316932,36.72,143.36,143.3,3.49510007]
[1750735317735,36.72,143.36,143.33,6.9721]
[1750735319830,43.6909,143.36,143.32,6.9726]
[1750735321035,43.6909,143.36,143.33,6.9723]
[1750735323619,6.9714,143.35,143.32,6.9727]
[1750735324233,43.691,143.36,143.32,6.9727]
[1750735327231,6.9714,143.35,143.32,6.9727]
[1750735327931,36.72,143.36,143.29,3.49510007]
[1750735328123,36.72,143.36,143.31,3.49510007]
[1750735328520,36.72,143.36,143.33,3.49510007]
[1750735328727,0.46,143.38,143.33,3.49510007]
[1750735328925,0.46,143.38,143.37,6.9704]
[1750735329126,0.46,143.38,143.33,3.49510007]
[1750735329531,0.46,143.38,143.35,6.9713]
[1750735330230,7.4299,143.38,143.34,6.9716]
[1750735333429,6.9707,143.37,143.33,6.9722]
[1750735333629,3.95510007,143.38,143.31,3.49510007]
[1750735333825,3.49510007,143.36,143.29,3.49510007]
[1750735334030,36.36,143.35,143.31,6.9733]
[1750735334636,43.3317,143.35,143.31,6.9733]
[1750735335932,43.3317,143.35,143.29,3.49510007]
[1750735336441,43.3317,143.35,143.32,6.9727]
[1750735337736,36.36,143.35,143.32,6.9727]
[1750735338444,43.3315,143.35,143.32,6.9727]
[1750735339346,36.36,143.35,143.32,6.9727]
[1750735342043,36.36,143.35,143.33,6.9723]
[1750735342247,36.36,143.35,143.29,3.49510007]
[1750735342648,36.36,143.35,143.33,6.9719]
[1750735343350,36.36,143.35,143.31,3.49510007]
[1750735343351,36.36,143.35,143.34,6.9719]
[1750735348359,36.36,143.35,143.33,6.9722]
[1750735353660,36.36,143.35,143.32,6.9726]
[1750735355160,36.36,143.35,143.31,6.9732]
[1750735355667,6.9722,143.34,143.31,6.9732]
[1750735355874,6.9722,143.34,143.3,6.9737]
[1750735356776,36.36,143.35,143.3,6.9737]
[1750735356777,6.9724,143.33,143.3,6.9737]
[1750735357969,6.972,143.34,143.31,6.9733]
[1750735358373,6.9724,143.33,143.29,6.974]
[1750735358679,6.9724,143.33,143.28,4.6145]
[1750735358977,6.9724,143.33,143.3,6.9735]
[1750735359374,6.9724,143.33,143.28,4.6145]
[1750735359572,6.9724,143.33,143.29,6.9741]
[1750735360379,3.49510007,143.34,143.28,6.9746]
[1750735360679,3.49510007,143.32,143.25,214.28927789]
[1750735360973,43.3135,143.31,143.27,6.9748]
[1750735361574,36.34,143.31,143.24,8.60306023]
[1750735361876,3.49510007,143.3,143.22,8.60306023]
[1750735362072,5.81090007,143.3,143.24,6.9764]
[1750735362462,2.3557,143.29,143.24,6.9764]
[1750735363477,3.49510007,143.28,143.21,3.49510007]
[1750735363683,36.34,143.27,143.21,3.49510007]
[1750735363980,36.34,143.27,143.22,6.9777]
[1750735363981,6.9761,143.26,143.22,6.9777]
[1750735364171,39.83510007,143.27,143.2,2.3128]
[1750735364678,46.81070007,143.27,143.23,6.9769]
[1750735366072,6.9758,143.26,143.23,6.9769]
[1750735366271,6.9758,143.26,143.22,6.9774]
[1750735367580,6.9758,143.26,143.23,6.9772]
[1750735368886,6.9763,143.25,143.2,2.3128]
[1750735369078,6.9763,143.25,143.19,5.72410007]
[1750735369278,6.9763,143.25,143.21,6.978]
[1750735369684,6.9768,143.24,143.2,6.9786]
[1750735369980,36.36,143.23,143.2,6.9786]
[1750735371677,36.36,143.23,143.21,6.9781]
[1750735373581,36.36,143.23,143.22,6.9777]
[1750735375287,36.36,143.23,143.21,6.9778]
[1750735375495,36.36,143.23,143.17,3.49510007]
[1750735377384,36.36,143.23,143.2,6.9784]
[1750735377891,36.36,143.23,143.17,3.49510007]
[1750735378685,43.3376,143.23,143.19,6.979]
[1750735380586,6.9779,143.22,143.19,6.979]
[1750735380787,6.9779,143.22,143.18,6.9793]
[1750735381192,6.9785,143.21,143.17,6.9798]
[1750735382994,6.9785,143.21,143.18,6.9796]
[1750735383888,39.85510007,143.23,143.13,36.36]
[1750735384192,3.49510007,143.21,143.14,3.49510007]
[1750735384595,6.9785,143.21,143.17,6.98]
[1750735385299,0.2,143.21,143.16,6.9804]
[1750735385689,6.9791,143.2,143.16,6.9804]
[1750735385995,36.36,143.19,143.16,6.9804]
[1750735386991,36.36,143.19,143.12,8.14790007]
[1750735387383,6.9797,143.18,143.14,6.9815]
[1750735388194,39.85510007,143.19,143.1,39.85510007]
[1750735388396,2.4199,143.18,143.1,3.49510007]
[1750735388595,6.9803,143.17,143.1,3.49510007]
[1750735389097,6.9803,143.17,143.08,2.4152]
[1750735389098,2.4199,143.18,143.12,3.49510007]
[1750735389698,9.3997,143.18,143.15,6.981]
[1750735390490,2.4199,143.18,143.15,6.981]
[1750735393298,9.3996,143.18,143.15,6.981]
[1750735393809,12.89470007,143.18,143.15,6.981]
[1750735394202,5.91500007,143.18,143.15,6.981]
[1750735396703,5.91500007,143.18,143.12,3.49510007]
[1750735397504,12.89470007,143.18,143.15,6.9809]
[1750735398702,5.91500007,143.18,143.15,6.9809]
[1750735399894,0.2,143.21,143.14,3.49510007]
[1750735400099,36.54,143.21,143.16,3.49510007]
[1750735400596,36.54,143.21,143.2,6.9787]
[1750735401198,0.2,143.21,143.2,6.9787]
[1750735401712,36.34,143.24,143.23,6.9772]
[1750735402511,3.49510007,143.27,143.23,6.9772]
[1750735402813,36.34,143.26,143.23,6.9772]
[1750735404198,36.34,143.26,143.24,6.9767]
[1750735404597,36.34,143.26,143.2,3.49510007]
[1750735405197,36.34,143.26,143.21,2.2596]
[1750735405406,36.34,143.26,143.22,3.49510007]
[1750735405810,36.34,143.26,143.25,6.9762]
[1750735406807,38.6764,143.29,143.26,6.9753]
[1750735407007,36.34,143.29,143.24,3.49510007]
[1750735407212,36.34,143.29,143.26,3.49510007]
[1750735407706,9.3532,143.33,143.26,3.49510007]
[1750735407919,36.34,143.32,143.26,3.49510007]
[1750735408300,36.34,143.32,143.28,3.49510007]
[1750735408710,36.34,143.32,143.3,6.9734]
[1750735409004,36.34,143.32,143.28,3.49510007]
[1750735409208,639.24,143.35,143.28,3.49510007]
[1750735409999,0.46,143.34,143.32,6.9727]
[1750735410699,0.46,143.34,143.33,6.9723]
[1750735411599,36.32,143.38,143.35,6.9709]
[1750735411804,36.32,143.38,143.32,3.49510007]
[1750735412004,36.32,143.38,143.3,7.1009]
[1750735412200,36.32,143.38,143.34,6.9717]
[1750735413304,43.2901,143.38,143.34,6.9717]
[1750735415415,6.9708,143.37,143.32,3.49510007]
[1750735416209,6.9708,143.37,143.33,6.972]
[1750735420420,43.29,143.38,143.34,6.9718]
[1750735421405,6.9705,143.37,143.33,6.9722]
[1750735422618,6.9705,143.37,143.34,6.9717]
[1750735425324,6.9705,143.37,143.33,6.9722]
[1750735425526,6.9705,143.37,143.31,3.49510007]
[1750735425919,6.9705,143.37,143.33,6.972]
[1750735427722,6.9712,143.36,143.32,6.9727]
[1750735428032,3.49510007,143.37,143.32,6.9727]
[1750735428324,6.9712,143.36,143.32,6.9727]
[1750735429929,6.9714,143.35,143.32,6.9727]
[1750735430128,3.49510007,143.37,143.31,6.9732]
[1750735430325,3.49510007,143.35,143.26,40.9173]
[1750735430531,10.46760007,143.33,143.26,44.41240007]
[1750735430730,46.74760007,143.33,143.26,44.41240007]
[1750735430930,43.2525,143.33,143.3,6.9735]
[1750735434432,36.28,143.33,143.3,6.9735]
[1750735436631,43.2524,143.33,143.3,6.9735]
[1750735443538,36.28,143.33,143.28,3.49510007]
[1750735443742,36.28,143.33,143.3,3.49510007]
[1750735443939,36.28,143.36,143.3,3.49510007]
[1750735444134,43.2512,143.36,143.3,3.49510007]
[1750735444843,43.2512,143.36,143.33,6.972]
[1750735445341,36.28,143.37,143.32,3.49510007]
[1750735446839,36.28,143.37,143.34,6.9715]
[1750735447647,36.28,143.37,143.35,6.9712]
[1750735452544,36.28,143.37,143.36,6.9709]
[1750735455651,36.28,143.37,143.35,6.9713]
[1750735455950,36.28,143.37,143.34,3.49510007]
[1750735456554,36.28,143.37,143.35,6.9714]
[1750735456753,36.28,143.37,143.31,8.16380007]
[1750735456946,6.9714,143.35,143.32,6.9727]
[1750735457349,3.49510007,143.36,143.32,6.9727]
[1750735457752,36.28,143.37,143.28,36.22]
[1750735457753,39.77510007,143.37,143.29,3.49510007]
[1750735457957,2.54581057,143.36,143.29,3.49510007]
[1750735458253,6.9712,143.36,143.32,6.9724]
[1750735458454,6.9712,143.36,143.29,3.49510007]
[1750735460050,6.9712,143.36,143.32,6.9724]
[1750735460446,6.9712,143.36,143.29,3.49510007]
[1750735461357,6.9712,143.36,143.33,6.9722]
[1750735465062,6.9712,143.36,143.32,6.9727]
[1750735465451,6.9715,143.35,143.32,6.9727]
[1750735466059,6.9719,143.34,143.31,6.9732]
[1750735466559,36.22,143.33,143.31,6.9732]
[1750735468563,36.22,143.33,143.29,3.49510007]
[1750735469853,36.22,143.33,143.31,6.973]
[1750735473559,36.22,143.33,143.32,6.9728]
[1750735482670,42.04760007,143.36,143.33,6.9721]
[1750735482875,2.3763,143.39,143.33,3.49510007]
[1750735483082,644.74190007,143.42,143.35,3.49510007]
[1750735483272,8.06224752,143.41,143.37,3.49510007]
[1750735483472,2.54536648,143.4,143.37,3.49510007]
[1750735483775,36.14,143.42,143.37,3.49510007]
[1750735483978,2.54559861,143.41,143.37,3.49510007]
[1750735484282,36.14,143.42,143.37,3.49510007]
[1750735484879,36.14,143.42,143.41,6.9685]
[1750735486371,36.14,143.42,143.4,6.9688]
[1750735487079,36.14,143.42,143.37,3.49510007]
[1750735487882,36.14,143.42,143.39,6.9691]
[1750735488081,36.14,143.42,143.37,3.49510007]
[1750735490079,36.14,143.42,143.39,6.9691]
[1750735491686,43.108,143.42,143.39,6.9691]
[1750735493088,43.108,143.42,143.38,6.9697]
[1750735493586,43.108,143.42,143.39,6.9694]
[1750735493785,36.14,143.42,143.39,6.9694]
[1750735497486,36.14,143.42,143.38,3.49510007]
[1750735497781,43.1071,143.44,143.38,3.49510007]
[1750735498287,6.9671,143.44,143.38,3.49510007]
[1750735498485,36.14,143.43,143.38,3.49510007]
[1750735498687,36.14,143.43,143.4,6.9687]
[1750735501793,10.46220007,143.44,143.4,6.9687]
[1750735501990,36.14,143.43,143.4,6.9687]
[1750735502891,36.14,143.43,143.36,3.49510007]
[1750735503792,36.14,143.43,143.4,6.9685]
[1750735504791,43.1077,143.43,143.4,6.9685]
[1750735504992,43.1077,143.43,143.39,6.9693]
[1750735505386,6.968,143.42,143.39,6.9693]
[1750735505791,36.14,143.43,143.38,6.9698]
[1750735506192,6.9685,143.41,143.38,6.9698]
[1750735507592,6.9682,143.42,143.39,6.9692]
[1750735508293,45.4763,143.43,143.4,6.9689]
[1750735508997,45.4763,143.43,143.39,6.9692]
[1750735509496,6.9681,143.42,143.39,6.9692]
[1750735510897,38.5086,143.43,143.38,6.9697]
[1750735512394,6.9684,143.42,143.38,6.9697]
[1750735512702,3.49510007,143.4,143.34,2.3503]
[1750735512891,3.49510007,143.38,143.3,44.26880007]
[1750735513092,36.04,143.37,143.3,44.26880007]
[1750735513401,36.04,143.37,143.33,6.972]
[1750735513700,36.04,143.37,143.34,6.9717]
[1750735515191,36.04,143.37,143.3,44.26880007]
[1750735515788,36.04,143.37,143.32,3.49510007]
[1750735517487,36.04,143.37,143.35,6.9711]
[1750735518685,36.04,143.37,143.34,6.9716]
[1750735521002,36.04,143.37,143.35,6.9712]
[1750735521597,36.04,143.37,143.34,6.9717]
[1750735534420,38.28032384,143.37,143.34,6.9717]
[1750735534828,45.25072384,143.37,143.34,6.9717]
[1750735535022,2.24032384,143.36,143.3,4.7337]
[1750735535223,2.24032384,143.33,143.27,36.04]
[1750735535427,2.24032384,143.33,143.29,2.24032384]
[1750735535628,2.24032384,143.33,143.31,6.9732]
[1750735538229,6.9723,143.34,143.31,6.9732]
[1750735539329,3.50243388,143.35,143.28,3.50243388]
[1750735539626,11.6985,143.36,143.28,3.50243388]
[1750735540031,11.6985,143.36,143.33,6.9721]
[1750735540633,4.7275,143.36,143.33,6.9721]
[1750735541329,36.04,143.37,143.3,3.50243388]
[1750735541528,36.04,143.37,143.32,3.50243388]
[1750735541920,36.04,143.37,143.35,6.9711]
[1750735543035,36.04,143.37,143.33,6.9721]
[1750735543634,39.54243388,143.37,143.3,3.50243388]
[1750735544027,6.9712,143.36,143.3,3.50243388]
[1750735544227,39.54243388,143.37,143.3,3.50243388]
[1750735544428,39.54243388,143.37,143.28,3.50243388]
[1750735544736,2.54337522,143.36,143.28,3.50243388]
[1750735544937,6.9722,143.34,143.3,6.9736]
[1750735545531,6.9725,143.33,143.28,10.47673388]
[1750735545746,35.94,143.33,143.27,35.94]
[1750735546236,6.9736,143.31,143.27,42.9151]
[1750735546640,6.9736,143.31,143.27,6.9751]
[1750735546840,6.9736,143.31,143.28,6.9748]
[1750735547437,6.973,143.32,143.28,6.9748]
[1750735547637,35.94,143.33,143.29,6.9742]
[1750735548239,42.9126,143.33,143.29,6.9742]
[1750735555356,35.94,143.33,143.3,6.9738]
[1750735556756,42.9125,143.33,143.3,6.9738]
[1750735561250,35.94,143.33,143.3,6.9738]
[1750735563251,42.9124,143.33,143.3,6.9738]
[1750735568160,35.94,143.33,143.27,3.50243388]
[1750735568348,35.94,143.33,143.29,3.50243388]
[1750735568857,35.94,143.33,143.31,6.973]
[1750735571057,42.9124,143.33,143.3,6.9736]
[1750735571443,35.94,143.33,143.27,39.46243388]
[1750735571644,35.94,143.33,143.27,48.06265559]
[1750735572248,35.94,143.33,143.28,3.50203005]
[1750735572558,38.1666,143.36,143.3,3.50203005]
[1750735572759,35.96,143.36,143.3,3.50203005]
[1750735572957,35.96,143.36,143.31,3.50043484]
[1750735573354,35.96,143.36,143.33,6.972]
[1750735573560,35.96,143.36,143.31,3.50043484]
[1750735574760,35.96,143.36,143.34,6.9717]
[1750735576952,42.931,143.36,143.33,6.9722]
[1750735577146,35.96,143.36,143.29,12.10065655]
[1750735577453,35.96,143.36,143.29,3.50043484]
[1750735577846,35.96,143.36,143.29,12.10065655]
[1750735578255,35.96,143.36,143.31,3.50043484]
[1750735579161,35.96,143.36,143.33,6.9721]
[1750735579860,38.1046,143.39,143.33,3.50043484]
[1750735580065,2.54769347,143.38,143.33,3.50043484]
[1750735580256,45.0742,143.39,143.36,6.9708]
[1750735580456,2.54769114,143.38,143.36,6.9708]
[1750735580762,45.0742,143.39,143.36,6.9708]
[1750735581566,2.547006,143.38,143.36,6.9708]
[1750735581768,45.0742,143.39,143.36,6.9708]
[1750735582061,2.547006,143.38,143.36,6.9708]
[1750735582368,45.0742,143.39,143.36,6.9708]
[1750735582662,45.0742,143.39,143.31,44.44022171]
[1750735582663,2.547006,143.38,143.32,3.50043484]
[1750735582862,41.60503484,143.39,143.32,3.50043484]
[1750735583062,9.51726229,143.38,143.34,6.9716]
[1750735583263,41.60503484,143.39,143.32,3.50043484]
[1750735583449,2.5470611,143.38,143.35,6.971]
[1750735583655,48.57473484,143.39,143.35,6.971]
[1750735583964,2.54706459,143.38,143.32,3.50043484]
[1750735584165,6.9701,143.38,143.32,3.50043484]
[1750735584761,38.1046,143.39,143.32,3.50043484]
[1750735584965,38.1046,143.39,143.31,44.44022171]
[1750735585269,38.1046,143.39,143.36,6.9706]
[1750735586366,45.0741,143.39,143.36,6.9706]
[1750735589056,35.84,143.39,143.34,3.50043484]
[1750735589362,4.4703,143.4,143.34,3.50043484]
[1750735589363,640.5379,143.43,143.38,3.50043484]
[1750735589758,2.54473449,143.42,143.39,6.9693]
[1750735589962,640.5379,143.43,143.39,6.9693]
[1750735590670,6.968,143.42,143.39,6.9693]
[1750735592661,647.5056,143.43,143.39,6.9693]
[1750735593367,640.5379,143.43,143.4,6.9689]
[1750735593569,638.24,143.43,143.38,3.50043484]
[1750735593868,35.84,143.43,143.38,3.50043484]
[1750735594969,35.84,143.43,143.4,6.9686]
[1750735595164,35.84,143.43,143.38,3.50043484]
[1750735597273,35.84,143.43,143.4,6.9687]
[1750735598871,42.8077,143.43,143.39,6.9693]
[1750735599569,42.8077,143.43,143.4,6.9688]
[1750735600777,6.9681,143.42,143.39,6.9691]
[1750735601676,42.8077,143.43,143.39,6.9691]
[1750735601880,42.8077,143.43,143.4,6.9688]
[1750735602872,42.8077,143.43,143.39,6.9693]
[1750735603268,42.8077,143.43,143.4,6.9689]
[1750735603770,35.84,143.43,143.36,2.4257]
[1750735603976,38.1303,143.43,143.36,3.50043484]
[1750735604372,4.84586663,143.42,143.36,3.50043484]
[1750735604573,2.3015,143.42,143.36,3.50043484]
[1750735605666,6.9688,143.41,143.38,6.9699]
[1750735606973,9.2698,143.42,143.36,3.50043484]
[1750735607369,2.3015,143.42,143.36,3.50043484]
[1750735608786,2.3015,143.42,143.39,6.9692]
[1750735609398,2.3015,143.42,143.4,6.9689]
[1750735610801,9.2695,143.42,143.39,6.9693]
[1750735611096,9.2695,143.42,143.37,3.50043484]
[1750735611297,2.3015,143.42,143.4,6.9689]
[1750735618802,45.098,143.43,143.4,6.9689]
[1750735622605,6.968,143.42,143.39,6.9693]
[1750735623006,38.1303,143.43,143.37,3.50043484]
[1750735623307,45.0981,143.43,143.4,6.9688]
[1750735624309,42.8078,143.43,143.4,6.9688]
[1750735624605,42.8078,143.43,143.39,3.50043484]
[1750735624606,35.84,143.43,143.39,3.50043484]
[1750735625007,35.84,143.43,143.42,6.968]
[1750735625207,0.23,143.44,143.41,3.50043484]
[1750735625910,0.23,143.44,143.43,6.9675]
[1750735626811,0.23,143.44,143.42,6.9677]
[1750735628415,0.23,143.44,143.41,6.9682]
[1750735628416,7.197,143.44,143.41,6.9682]
[1750735628713,0.23,143.44,143.39,3.50043484]
[1750735628913,9.52056703,143.43,143.4,6.9687]
[1750735629114,6.9675,143.43,143.4,6.9687]
[1750735629309,0.23,143.44,143.37,5.86443484]
[1750735629310,6.9685,143.41,143.38,6.9698]
[1750735629611,2.55357233,143.4,143.33,12.10065655]
[1750735629811,35.74,143.42,143.35,3.50043484]
[1750735630009,42.7083,143.42,143.35,3.50043484]
[1750735630217,42.7083,143.42,143.35,12.10065655]
[1750735630516,42.7083,143.42,143.38,6.9696]
[1750735630817,42.7083,143.42,143.36,8.60022171]
[1750735632416,42.7083,143.42,143.35,12.10065655]
[1750735632808,42.7083,143.42,143.36,8.60022171]
[1750735633021,35.74,143.42,143.37,3.50043484]
[1750735633420,35.74,143.42,143.37,12.10065655]
[1750735634918,35.74,143.42,143.4,6.9686]
[1750735635822,2.55178925,143.41,143.4,6.9686]
[1750735636213,35.74,143.42,143.4,6.9686]
[1750735636814,35.74,143.42,143.37,3.50043484]
[1750735638724,35.74,143.42,143.41,6.9685]
[1750735638919,38.29165084,143.42,143.41,6.9685]
[1750735639724,38.291773,143.42,143.41,6.9685]
[1750735644021,38.291773,143.42,143.37,3.50043484]
[1750735644223,35.74,143.42,143.37,3.50043484]
[1750735645021,8.10963484,143.45,143.37,3.50043484]
[1750735645315,35.68,143.44,143.41,6.9682]
[1750735645520,35.68,143.44,143.37,3.50043484]
[1750735646128,35.68,143.44,143.42,6.9677]
[1750735652339,2.55584284,143.43,143.42,6.9677]
[1750735653435,2.55584284,143.43,143.41,6.9683]
[1750735653641,2.55584284,143.42,143.41,6.9683]
[1750735654037,2.55715672,143.42,143.41,6.9683]
[1750735657839,2.55715672,143.42,143.36,8.60022171]
[1750735658147,2.55715672,143.41,143.35,47.77916061]
[1750735658344,2.55628824,143.4,143.38,6.9695]
[1750735658538,2.23933295,143.41,143.38,6.9695]
[1750735658738,2.5562898,143.4,143.38,6.9695]
[1750735658937,2.23933295,143.41,143.38,6.9695]
[1750735659739,2.23933295,143.41,143.39,6.9694]
[1750735659939,2.23933295,143.42,143.36,2.23933295]
[1750735660141,2.5562901,143.41,143.38,2.23933295]
[1750735660339,6.9676,143.43,143.39,6.969]
[1750735660536,2.55618648,143.42,143.39,6.969]
[1750735660740,6.9676,143.43,143.39,6.969]
[1750735660941,2.55617671,143.42,143.4,6.9689]
[1750735661141,6.9676,143.43,143.4,6.9689]
[1750735661344,2.55617192,143.42,143.4,6.9689]
[1750735661543,6.9676,143.43,143.4,6.9689]
[1750735661743,2.55620521,143.42,143.4,6.9689]
[1750735661940,6.9676,143.43,143.4,6.9689]
[1750735662141,2.55617233,143.42,143.4,6.9689]
[1750735662347,6.9676,143.43,143.4,6.9689]
[1750735662549,2.5539473,143.42,143.4,6.9689]
[1750735662746,6.9676,143.43,143.4,6.9689]
[1750735662946,2.55400082,143.42,143.4,6.9689]
[1750735663149,6.9676,143.43,143.4,6.9689]
[1750735663350,2.55408969,143.42,143.4,6.9689]
[1750735663646,6.9676,143.43,143.4,6.9689]
[1750735663848,2.5540428,143.42,143.4,6.9689]
[1750735664046,6.9676,143.43,143.4,6.9689]
[1750735664248,2.55403547,143.42,143.4,6.9689]
[1750735664548,6.9676,143.43,143.4,6.9689]
[1750735664750,2.55406431,143.42,143.4,6.9689]
[1750735665050,6.9676,143.43,143.4,6.9689]
[1750735665248,2.5540362,143.42,143.4,6.9689]
[1750735665443,6.9676,143.43,143.4,6.9689]